[Event "Championnat de France Universitaire 2022"]
[Site "Limoges, France"]
[Date "2022.02.05"]
[Round "4.3"]
[White "Gatineau, Yovann"]
[Black "Albaric, Etienne"]
[Result "0-1"]
[TimeControl "15'+5''"]
[WhiteElo "2384"]
[BlackElo "2235"]

1. d4 {[%clk 00:15:08]} {[%emt 00:00:01]} Nf6 {[%clk 00:15:09]} {[%emt
00:00:01]} 2. Nf3 {[%clk 00:15:12]} {[%emt 00:00:02]} e6 {[%clk 00:15:12]} 3.
c4 {[%clk 00:15:16]} Bb4+ {[%clk 00:15:14]} {[%emt 00:00:05]} 4. Bd2 {[%clk
00:15:20]} Bxd2+ {[%clk 00:15:17]} {[%emt 00:00:01]} 5. Qxd2 {[%clk 00:15:23]}
{[%emt 00:00:01]} d5 {[%clk 00:15:21]} {[%emt 00:00:01]} 6. Nc3 {[%clk
00:15:17]} {[%emt 00:00:12]} O-O {[%clk 00:15:13]} {[%emt 00:00:13]} 7. g3
{[%clk 00:14:08]} {[%emt 00:01:13]} Qe7 {[%clk 00:14:07]} {[%emt 00:01:12]} 8.
Bg2 {[%clk 00:14:06]} {[%emt 00:00:07]} Rd8 {[%clk 00:13:32]} {[%emt 00:00:40]}
9. O-O {[%clk 00:12:46]} {[%emt 00:01:25]} dxc4 {[%clk 00:12:37]} {[%emt
00:01:01]} 10. e4 {[%clk 00:12:48]} {[%emt 00:00:01]} c6 {[%clk 00:12:14]}
{[%emt 00:00:29]} 11. a4 {[%clk 00:11:29]} {[%emt 00:01:25]} b6 {[%clk
00:11:02]} {[%emt 00:01:17]} 12. Qe2 {[%clk 00:10:16]} {[%emt 00:01:17]} Ba6
{[%clk 00:10:52]} {[%emt 00:00:15]} 13. Rad1 {[%clk 00:09:44]} {[%emt
00:00:36]} Nbd7 {[%clk 00:10:06]} {[%emt 00:00:52]} 14. Rfe1 {[%clk 00:07:55]}
{[%emt 00:01:54]} e5 {[%clk 00:08:27]} {[%emt 00:01:44]} 15. Nxe5 {[%clk
00:05:42]} {[%emt 00:02:17]} Nxe5 {[%clk 00:08:22]} {[%emt 00:00:10]} 16. dxe5
{[%clk 00:05:45]} {[%emt 00:00:02]} Qxe5 {[%clk 00:08:21]} {[%emt 00:00:06]} 17.
f4 {[%clk 00:05:48]} {[%emt 00:00:02]} Qc5+ {[%clk 00:08:13]} {[%emt 00:00:13]}
18. Kh1 {[%clk 00:05:25]} {[%emt 00:00:28]} Rd3 {[%clk 00:07:19]} {[%emt
00:00:58]} 19. e5 {[%clk 00:05:28]} {[%emt 00:00:02]} Nd5 {[%clk 00:06:27]}
{[%emt 00:00:57]} 20. e6 {[%clk 00:05:00]} {[%emt 00:00:33]} Rf8 {[%clk
00:04:15]} {[%emt 00:02:15]} 21. exf7+ {[%clk 00:02:45]} {[%emt 00:02:22]} Rxf7
{[%clk 00:04:19]} {[%emt 00:00:01]} 22. Qe8+ {[%clk 00:02:27]} {[%emt
00:00:22]} Rf8 {[%clk 00:04:02]} {[%emt 00:00:23]} 23. Qe6+ {[%clk 00:01:54]}
{[%emt 00:00:37]} Kh8 {[%clk 00:04:04]} {[%emt 00:00:03]} 24. Be4 {[%clk
00:00:51]} {[%emt 00:01:08]} Rxd1 {[%clk 00:03:32]} {[%emt 00:00:38]} 25. Rxd1
{[%clk 00:00:51]} {[%emt 00:00:05]} Nf6 {[%clk 00:00:41]} {[%emt 00:02:56]} 26.
Bg2 {[%clk 00:00:54]} {[%emt 00:00:01]} Bc8 {[%clk 00:00:23]} {[%emt 00:00:23]}
27. Qxc6 {[%clk 00:00:37]} {[%emt 00:00:22]} Qe3 {[%clk 00:00:27]} {[%emt
00:00:01]} 28. Qd6 {[%clk 00:00:24]} {[%emt 00:00:18]} Re8 {[%clk 00:00:27]}
{[%emt 00:00:05]} 29. Qc6 {[%clk 00:00:07]} {[%emt 00:00:23]} Ng4 {[%clk
00:00:22]} {[%emt 00:00:10]} 30. Rf1 {[%clk 00:00:10]} {[%emt 00:00:01]} Rf8
{[%clk 00:00:16]} {[%emt 00:00:11]} 31. Qf3 {[%clk 00:00:07]} {[%emt 00:00:07]}
Qc5 {[%clk 00:00:19]} {[%emt 00:00:03]} 32. h3 {[%clk 00:00:11]} {[%emt
00:00:02]} Ne3 {[%clk 00:00:21]} {[%emt 00:00:02]} 33. Re1 {[%clk 00:00:10]}
{[%emt 00:00:04]} Nxg2 {[%clk 00:00:24]} {[%emt 00:00:04]} 34. Kxg2 {[%clk
00:00:14]} {[%emt 00:00:01]} Bd7 {[%clk 00:00:25]} {[%emt 00:00:04]} 35. Qe3
{[%clk 00:00:15]} {[%emt 00:00:03]} Bc6+ {[%clk 00:00:28]} {[%emt 00:00:03]} 36.
Kf2 {[%clk 00:00:19]} Qf5 {[%clk 00:00:30]} {[%emt 00:00:03]} 37. Qe6 {[%clk
00:00:10]} {[%emt 00:00:13]} Qc5+ {[%clk 00:00:28]} {[%emt 00:00:07]} 38. Qe3
{[%clk 00:00:13]} {[%emt 00:00:02]} Qh5 {[%clk 00:00:30]} {[%emt 00:00:03]} 39.
g4 {[%clk 00:00:08]} {[%emt 00:00:11]} Qh4+ {[%clk 00:00:26]} {[%emt 00:00:09]}
40. Kg1 {[%clk 00:00:12]} h5 {[%clk 00:00:18]} {[%emt 00:00:13]} 41. f5 {[%clk
00:00:07]} {[%emt 00:00:10]} Re8 {[%clk 00:00:08]} {[%emt 00:00:15]} 42. Qxe8+
Bxe8 {[%clk 00:00:12]} 43. Rxe8+ {[%clk 00:00:13]} Kh7 {[%clk 00:00:16]} 44.
Re4 {[%clk 00:00:07]} {[%emt 00:00:10]} Qg3+ {[%clk 00:00:20]} 45. Kf1 {[%clk
00:00:11]} Qxh3+ {[%clk 00:00:24]} {[%emt 00:00:02]} 46. Kf2 {[%clk 00:00:16]}
hxg4 {[%clk 00:00:27]} {[%emt 00:00:02]} 47. Ne2 {[%clk 00:00:20]} Qf3+ {[%clk
00:00:30]} {[%emt 00:00:02]} 48. Ke1 {[%emt 00:00:04]} 0-1

[Event "Championnat de France Universitaire 2022"]
[Site "Limoges, France"]
[Date "2022.02.05"]
[Round "4.4"]
[White "Gault, Emmanuel"]
[Black "Profili, Emilio"]
[Result "1-0"]
[TimeControl "15'+5''"]
[WhiteElo "2041"]
[BlackElo "2097"]

1. c4 {[%clk 00:15:08]} {[%emt 00:29:54]} Nf6 {[%clk 00:15:09]} {[%emt
00:00:02]} 2. Nc3 {[%clk 00:15:11]} {[%emt 00:00:02]} d5 {[%clk 00:15:08]}
{[%emt 00:00:06]} 3. cxd5 {[%clk 00:15:14]} {[%emt 00:00:04]} Nxd5 {[%clk
00:15:12]} 4. g3 {[%clk 00:15:17]} {[%emt 00:00:01]} Nb6 {[%clk 00:15:06]}
{[%emt 00:00:12]} 5. Bg2 {[%clk 00:15:19]} g6 {[%clk 00:15:09]} {[%emt
00:00:03]} 6. b3 {[%clk 00:15:18]} {[%emt 00:00:05]} Bg7 {[%clk 00:15:12]}
{[%emt 00:00:02]} 7. Bb2 {[%clk 00:15:21]} {[%emt 00:00:02]} O-O {[%clk
00:15:15]} {[%emt 00:00:03]} 8. Nf3 {[%clk 00:15:20]} {[%emt 00:00:06]} c6
{[%clk 00:14:42]} {[%emt 00:00:38]} 9. O-O {[%clk 00:15:21]} {[%emt 00:00:04]}
N8d7 {[%clk 00:14:39]} {[%emt 00:00:08]} 10. Rc1 {[%clk 00:15:23]} {[%emt
00:00:03]} Re8 {[%clk 00:14:33]} {[%emt 00:00:11]} 11. Qc2 {[%clk 00:15:22]}
{[%emt 00:00:05]} Nf6 {[%clk 00:14:31]} {[%emt 00:00:07]} 12. d3 {[%clk
00:15:09]} {[%emt 00:00:18]} Be6 {[%clk 00:14:00]} {[%emt 00:00:36]} 13. Nd2
{[%clk 00:15:01]} {[%emt 00:00:13]} Qc8 {[%clk 00:13:57]} {[%emt 00:00:09]} 14.
Rfd1 {[%clk 00:14:55]} {[%emt 00:00:10]} Bh3 {[%clk 00:13:59]} {[%emt
00:00:03]} 15. Bh1 {[%clk 00:14:57]} {[%emt 00:00:03]} Qf5 {[%clk 00:13:50]}
{[%emt 00:00:15]} 16. Nce4 {[%clk 00:14:53]} {[%emt 00:00:09]} Ng4 {[%clk
00:10:38]} {[%emt 00:03:17]} 17. Bxg7 {[%clk 00:14:08]} {[%emt 00:00:50]} Kxg7
{[%clk 00:10:40]} {[%emt 00:00:03]} 18. Nf3 {[%clk 00:14:08]} {[%emt 00:00:05]}
f6 {[%clk 00:10:19]} {[%emt 00:00:27]} 19. Qb2 {[%clk 00:13:57]} {[%emt
00:00:16]} e5 {[%clk 00:10:06]} {[%emt 00:00:18]} 20. Nd6 {[%clk 00:13:42]}
{[%emt 00:00:19]} Qh5 {[%clk 00:09:44]} {[%emt 00:00:26]} 21. Nxe8+ {[%clk
00:13:40]} {[%emt 00:00:08]} Rxe8 {[%clk 00:09:48]} {[%emt 00:00:01]} 22. Qa3
{[%clk 00:12:49]} {[%emt 00:00:55]} Nc8 {[%clk 00:07:46]} {[%emt 00:02:07]} 23.
Rc4 {[%clk 00:12:15]} {[%emt 00:00:39]} f5 {[%clk 00:06:33]} {[%emt 00:01:18]}
24. Qb2 {[%clk 00:08:46]} {[%emt 00:03:34]} Kg8 {[%clk 00:06:11]} {[%emt
00:00:26]} 25. Bg2 {[%clk 00:08:28]} {[%emt 00:00:23]} Bxg2 {[%clk 00:05:11]}
{[%emt 00:01:05]} 26. Kxg2 {[%clk 00:08:30]} {[%emt 00:00:03]} e4 {[%clk
00:04:51]} {[%emt 00:00:25]} 27. dxe4 {[%clk 00:08:29]} {[%emt 00:00:06]} fxe4
{[%clk 00:04:56]} {[%emt 00:00:01]} 28. Nh4 {[%clk 00:08:15]} {[%emt 00:00:19]}
g5 {[%clk 00:04:24]} {[%emt 00:00:36]} 29. Rd7 {[%clk 00:07:43]} {[%emt
00:00:37]} Ne5 {[%clk 00:04:27]} {[%emt 00:00:02]} 30. Rxb7 {[%clk 00:04:17]}
{[%emt 00:03:32]} Nd6 {[%clk 00:03:36]} {[%emt 00:00:55]} 31. Nf5 {[%clk
00:02:56]} {[%emt 00:01:26]} Nxf5 {[%clk 00:01:50]} {[%emt 00:01:52]} 32. Rc5
{[%clk 00:01:18]} {[%emt 00:01:44]} Nf3 {[%clk 00:00:53]} {[%emt 00:01:01]} 33.
h3 {[%clk 00:00:48]} {[%emt 00:00:35]} g4 {[%clk 00:00:45]} {[%emt 00:00:13]}
34. h4 {[%clk 00:00:29]} {[%emt 00:00:24]} Ne5 {[%clk 00:00:27]} {[%emt
00:00:22]} 35. Rxe5 {[%clk 00:00:31]} {[%emt 00:00:03]} Rxe5 {[%clk 00:00:31]}
{[%emt 00:00:01]} 36. Rb8+ {[%clk 00:00:27]} {[%emt 00:00:09]} Re8 {[%clk
00:00:34]} {[%emt 00:00:02]} 37. Rxe8+ {[%clk 00:00:12]} {[%emt 00:00:19]} Qxe8
{[%clk 00:00:38]} {[%emt 00:00:02]} 38. Qf6 {[%clk 00:00:16]} {[%emt 00:00:01]}
Ng7 {[%clk 00:00:33]} {[%emt 00:00:09]} 39. Qg5 {[%clk 00:00:16]} {[%emt
00:00:06]} h5 {[%clk 00:00:36]} {[%emt 00:00:02]} 40. e3 {[%clk 00:00:18]}
{[%emt 00:00:03]} Kh7 {[%clk 00:00:35]} {[%emt 00:00:06]} 41. Qa5 {[%clk
00:00:18]} {[%emt 00:00:05]} Qf7 {[%clk 00:00:38]} {[%emt 00:00:02]} 42. Kg1
{[%clk 00:00:21]} {[%emt 00:00:03]} Nf5 {[%clk 00:00:38]} {[%emt 00:00:04]} 43.
Qe5 {[%clk 00:00:20]} {[%emt 00:00:05]} Qd5 {[%clk 00:00:32]} {[%emt 00:00:12]}
44. Qc7+ {[%clk 00:00:19]} {[%emt 00:00:07]} Kg6 {[%clk 00:00:34]} {[%emt
00:00:03]} 45. Qxa7 {[%clk 00:00:20]} {[%emt 00:00:04]} Qd1+ {[%clk 00:00:32]}
{[%emt 00:00:07]} 46. Kg2 {[%clk 00:00:21]} {[%emt 00:00:04]} Qf3+ {[%clk
00:00:30]} {[%emt 00:00:07]} 47. Kg1 {[%clk 00:00:23]} {[%emt 00:00:03]} Qd1+
{[%clk 00:00:27]} {[%emt 00:00:08]} 48. Kg2 {[%clk 00:00:27]} {[%emt 00:00:01]}
Qc2 {[%clk 00:00:16]} {[%emt 00:00:16]} 49. b4 {[%clk 00:00:20]} {[%emt
00:00:12]} Kf6 {[%clk 00:00:17]} {[%emt 00:00:04]} 50. a4 {[%clk 00:00:22]}
{[%emt 00:00:04]} Ne7 {[%clk 00:00:13]} {[%emt 00:00:09]} 51. Qd4+ {[%clk
00:00:22]} {[%emt 00:00:05]} Ke6 {[%clk 00:00:14]} {[%emt 00:00:04]} 52. a5
{[%clk 00:00:21]} {[%emt 00:00:06]} Nf5 {[%clk 00:00:12]} {[%emt 00:00:07]} 53.
Qb6 {[%clk 00:00:19]} {[%emt 00:00:07]} Nd6 {[%clk 00:00:13]} {[%emt 00:00:05]}
54. a6 {[%clk 00:00:19]} {[%emt 00:00:05]} Qa4 {[%clk 00:00:11]} {[%emt
00:00:07]} 55. a7 {[%clk 00:00:18]} {[%emt 00:00:06]} Kd7 {[%clk 00:00:13]}
{[%emt 00:00:04]} 56. Qb8 {[%clk 00:00:19]} {[%emt 00:00:03]} Qd1 {[%clk
00:00:12]} {[%emt 00:00:06]} 57. a8=Q {[%clk 00:00:21]} {[%emt 00:00:03]} Qf3+
{[%clk 00:00:15]} {[%emt 00:00:02]} 58. Kg1 {[%clk 00:00:24]} {[%emt 00:00:01]}
Qd1+ {[%clk 00:00:19]} {[%emt 00:00:02]} 59. Kh2 {[%clk 00:00:27]} {[%emt
00:00:02]} Qf3 {[%clk 00:00:06]} {[%emt 00:00:18]} 60. Qd8+ {[%clk 00:00:29]}
{[%emt 00:00:03]} Ke6 {[%clk 00:00:09]} {[%emt 00:00:02]} 61. Qg8+ {[%clk
00:00:31]} {[%emt 00:00:02]} Nf7 {[%clk 00:00:10]} {[%emt 00:00:05]} 62. Qxc6+
{[%clk 00:00:32]} {[%emt 00:00:03]} Ke7 {[%clk 00:00:07]} {[%emt 00:00:07]} 63.
Qge8# {[%clk 00:00:35]} {[%emt 00:00:02]} 1-0

[Event "Championnat de France Universitaire 2022"]
[Site "Limoges, France"]
[Date "2022.02.05"]
[Round "4.1"]
[White "Aghamir Alrobiai, Nizar"]
[Black "Rakotomaharo, Fy Antenaina"]
[Result "0-1"]
[TimeControl "15'+5''"]
[WhiteElo "2118"]
[BlackElo "2474"]

1. e4 {[%clk 00:15:07]} {[%emt 00:00:03]} e5 {[%clk 00:15:09]} 2. Nf3 {[%clk
00:15:10]} {[%emt 00:00:03]} Nc6 {[%clk 00:15:12]} {[%emt 00:00:01]} 3. Bb5
{[%clk 00:15:13]} {[%emt 00:00:02]} a6 {[%clk 00:15:16]} {[%emt 00:00:01]} 4.
Ba4 {[%clk 00:15:17]} {[%emt 00:00:01]} Bc5 {[%clk 00:15:19]} {[%emt 00:00:02]}
5. O-O {[%clk 00:14:52]} {[%emt 00:00:29]} Nge7 {[%clk 00:15:21]} {[%emt
00:00:02]} 6. c3 {[%clk 00:14:52]} {[%emt 00:00:06]} Ng6 {[%clk 00:15:23]}
{[%emt 00:00:02]} 7. d4 {[%clk 00:14:46]} {[%emt 00:00:11]} Ba7 {[%clk
00:15:27]} {[%emt 00:00:02]} 8. Re1 {[%clk 00:12:27]} {[%emt 00:02:24]} O-O
{[%clk 00:15:23]} {[%emt 00:00:08]} 9. Be3 {[%clk 00:10:53]} {[%emt 00:01:39]}
d6 {[%clk 00:14:10]} {[%emt 00:01:18]} 10. Bxc6 {[%clk 00:10:19]} {[%emt
00:00:40]} bxc6 {[%clk 00:14:14]} {[%emt 00:00:02]} 11. dxe5 {[%clk 00:10:22]}
{[%emt 00:00:02]} dxe5 {[%clk 00:13:46]} {[%emt 00:00:32]} 12. Na3 {[%clk
00:08:59]} {[%emt 00:01:27]} Qf6 {[%clk 00:12:05]} {[%emt 00:01:46]} 13. Bxa7
{[%clk 00:06:04]} {[%emt 00:03:01]} Rxa7 {[%clk 00:12:08]} {[%emt 00:00:01]} 14.
Nc4 {[%clk 00:05:48]} {[%emt 00:00:21]} Bg4 {[%clk 00:10:55]} {[%emt 00:01:18]}
15. Ne3 {[%clk 00:05:27]} {[%emt 00:00:27]} Bxf3 {[%clk 00:08:12]} {[%emt
00:02:48]} 16. Qxf3 {[%clk 00:05:30]} {[%emt 00:00:02]} Qxf3 {[%clk 00:08:16]}
{[%emt 00:00:01]} 17. gxf3 {[%clk 00:05:33]} {[%emt 00:00:01]} Nh4 {[%clk
00:08:19]} {[%emt 00:00:01]} 18. Red1 {[%clk 00:05:37]} {[%emt 00:00:02]} Nxf3+
{[%clk 00:08:14]} {[%emt 00:00:10]} 19. Kg2 {[%clk 00:05:35]} {[%emt 00:00:07]}
Ng5 {[%clk 00:08:17]} {[%emt 00:00:02]} 20. Rd7 {[%clk 00:04:45]} {[%emt
00:00:55]} Nxe4 {[%clk 00:07:52]} {[%emt 00:00:31]} 21. Nc4 {[%clk 00:03:49]}
{[%emt 00:01:01]} Rb7 {[%clk 00:05:36]} {[%emt 00:02:21]} 22. b3 {[%clk
00:02:44]} {[%emt 00:01:10]} f6 {[%clk 00:04:11]} {[%emt 00:01:30]} 23. Na5
{[%clk 00:02:02]} {[%emt 00:00:48]} Rb5 {[%clk 00:04:14]} {[%emt 00:00:01]} 24.
Nxc6 {[%clk 00:01:44]} {[%emt 00:00:22]} Rc5 {[%clk 00:02:58]} {[%emt
00:01:22]} 25. Ne7+ {[%clk 00:00:45]} {[%emt 00:01:04]} Kf7 {[%clk 00:03:01]}
{[%emt 00:00:02]} 26. Rad1 {[%clk 00:00:26]} {[%emt 00:00:24]} Ke6 {[%clk
00:02:02]} {[%emt 00:01:04]} 27. b4 {[%clk 00:00:11]} {[%emt 00:00:21]} Rxc3
{[%clk 00:01:49]} {[%emt 00:00:18]} 28. Nd5 {[%clk 00:00:10]} {[%emt 00:00:06]}
Kxd7 {[%clk 00:01:53]} {[%emt 00:00:01]} 29. Nxc3+ {[%clk 00:00:14]} {[%emt
00:00:01]} Nd6 {[%clk 00:01:57]} 30. Nd5 {[%clk 00:00:15]} {[%emt 00:00:04]} a5
{[%clk 00:01:49]} {[%emt 00:00:14]} 31. b5 {[%clk 00:00:15]} {[%emt 00:00:04]}
a4 {[%clk 00:01:19]} {[%emt 00:00:35]} 32. Nc3 {[%clk 00:00:14]} {[%emt
00:00:06]} Ra8 {[%clk 00:01:07]} {[%emt 00:00:16]} 33. h4 {[%clk 00:00:11]}
{[%emt 00:00:09]} Ke6 {[%clk 00:01:06]} {[%emt 00:00:06]} 34. Rb1 {[%clk
00:00:09]} {[%emt 00:00:07]} Nc4 {[%clk 00:01:05]} {[%emt 00:00:06]} 35. Rb4
{[%clk 00:00:09]} {[%emt 00:00:05]} Nb6 {[%clk 00:01:09]} {[%emt 00:00:01]} 36.
Rg4 {[%clk 00:00:13]} {[%emt 00:00:01]} g6 {[%clk 00:01:11]} {[%emt 00:00:03]}
37. h5 {[%clk 00:00:13]} {[%emt 00:00:04]} f5 {[%clk 00:01:14]} {[%emt
00:00:02]} 38. Rg3 {[%clk 00:00:16]} {[%emt 00:00:02]} Rg8 {[%clk 00:01:07]}
{[%emt 00:00:12]} 39. Kf1 {[%clk 00:00:20]} {[%emt 00:00:01]} g5 {[%clk
00:01:00]} {[%emt 00:00:12]} 40. Rd3 {[%clk 00:00:23]} {[%emt 00:00:02]} g4
{[%clk 00:00:54]} {[%emt 00:00:11]} 41. Ne2 {[%clk 00:00:23]} {[%emt 00:00:05]}
f4 {[%clk 00:00:52]} {[%emt 00:00:07]} 42. Rc3 {[%clk 00:00:24]} {[%emt
00:00:04]} Nd5 {[%clk 00:00:48]} {[%emt 00:00:09]} 43. Rc6+ {[%clk 00:00:27]}
{[%emt 00:00:02]} Kf5 {[%clk 00:00:52]} {[%emt 00:00:01]} 44. Ra6 {[%clk
00:00:29]} {[%emt 00:00:03]} g3 {[%clk 00:00:47]} {[%emt 00:00:10]} 45. fxg3
{[%clk 00:00:31]} {[%emt 00:00:03]} f3 {[%clk 00:00:52]} 46. Nc1 {[%clk
00:00:07]} {[%emt 00:00:29]} Rxg3 {[%clk 00:00:49]} {[%emt 00:00:08]} 47. Rxa4
{[%clk 00:00:08]} {[%emt 00:00:04]} Rg2 {[%clk 00:00:46]} {[%emt 00:00:08]} 48.
Nd3 {[%clk 00:00:08]} {[%emt 00:00:06]} Ne3+ {[%clk 00:00:50]} {[%emt
00:00:01]} 49. Ke1 {[%clk 00:00:12]} Re2# {[%clk 00:00:53]} {[%emt 00:00:02]}
0-1

[Event "Championnat de France Universitaire 2022"]
[Site "Limoges, France"]
[Date "2022.02.05"]
[Round "4.5"]
[White "Bouslimi, Nabil"]
[Black "Fonte Sanchez, Claudia"]
[Result "1-0"]
[TimeControl "15'+5''"]
[WhiteElo "2052"]
[BlackElo "2003"]

1. d4 {[%clk 00:15:08]} {[%emt 00:00:02]} d5 {[%clk 00:15:09]} 2. c4 {[%clk
00:15:12]} {[%emt 00:00:01]} e6 {[%clk 00:15:12]} {[%emt 00:00:02]} 3. Nc3
{[%clk 00:15:15]} {[%emt 00:00:03]} c6 {[%clk 00:15:14]} {[%emt 00:00:01]} 4.
e3 {[%clk 00:15:11]} {[%emt 00:00:09]} Nf6 {[%clk 00:15:16]} {[%emt 00:00:03]}
5. Nf3 {[%clk 00:15:15]} {[%emt 00:00:02]} Be7 {[%clk 00:15:17]} {[%emt
00:00:05]} 6. Be2 {[%clk 00:15:18]} Nbd7 {[%clk 00:15:19]} {[%emt 00:00:03]} 7.
O-O {[%clk 00:15:21]} {[%emt 00:00:03]} O-O {[%clk 00:15:19]} {[%emt 00:00:05]}
8. a3 {[%clk 00:15:23]} {[%emt 00:00:02]} Rb8 {[%clk 00:15:06]} {[%emt
00:00:19]} 9. Qa4 {[%clk 00:14:58]} {[%emt 00:00:29]} a6 {[%clk 00:14:38]}
{[%emt 00:00:32]} 10. c5 {[%clk 00:14:26]} {[%emt 00:00:37]} Qc7 {[%clk
00:14:32]} {[%emt 00:00:11]} 11. b4 {[%clk 00:14:28]} {[%emt 00:00:03]} e5
{[%clk 00:14:29]} {[%emt 00:00:08]} 12. dxe5 {[%clk 00:14:20]} {[%emt
00:00:13]} Nxe5 {[%clk 00:14:31]} {[%emt 00:00:02]} 13. Nxe5 {[%clk 00:13:54]}
{[%emt 00:00:32]} Qxe5 {[%clk 00:14:34]} {[%emt 00:00:02]} 14. Bb2 {[%clk
00:13:57]} {[%emt 00:00:01]} Qc7 {[%clk 00:14:22]} {[%emt 00:00:17]} 15. Qc2
{[%clk 00:12:31]} {[%emt 00:01:32]} Be6 {[%clk 00:13:45]} {[%emt 00:00:42]} 16.
h3 {[%clk 00:11:48]} {[%emt 00:00:48]} Rbd8 {[%clk 00:13:24]} {[%emt 00:00:26]}
17. Bd3 {[%clk 00:11:02]} {[%emt 00:00:51]} g6 {[%clk 00:12:42]} {[%emt
00:00:46]} 18. Ne2 {[%clk 00:11:00]} {[%emt 00:00:07]} Nd7 {[%clk 00:12:34]}
{[%emt 00:00:14]} 19. Nd4 {[%clk 00:10:31]} {[%emt 00:00:34]} Bf6 {[%clk
00:12:00]} {[%emt 00:00:39]} 20. Rad1 {[%clk 00:09:49]} {[%emt 00:00:47]} Ne5
{[%clk 00:11:22]} {[%emt 00:00:43]} 21. Be2 {[%clk 00:09:19]} {[%emt 00:00:35]}
Bg7 {[%clk 00:09:26]} {[%emt 00:02:00]} 22. f4 {[%clk 00:08:01]} {[%emt
00:01:22]} Nc4 {[%clk 00:07:32]} {[%emt 00:02:00]} 23. Bxc4 {[%clk 00:07:42]}
{[%emt 00:00:24]} Bxd4 {[%clk 00:05:53]} {[%emt 00:01:43]} 24. Rxd4 {[%clk
00:06:47]} {[%emt 00:01:00]} dxc4 {[%clk 00:05:27]} {[%emt 00:00:31]} 25. Qc3
{[%clk 00:06:15]} {[%emt 00:00:36]} f6 {[%clk 00:05:26]} {[%emt 00:00:07]} 26.
Rfd1 {[%clk 00:06:13]} {[%emt 00:00:06]} Rde8 {[%clk 00:05:21]} {[%emt
00:00:10]} 27. Rd6 {[%clk 00:05:46]} {[%emt 00:00:32]} Rf7 {[%clk 00:04:47]}
{[%emt 00:00:38]} 28. e4 {[%clk 00:05:31]} {[%emt 00:00:21]} Qe7 {[%clk
00:04:22]} {[%emt 00:00:29]} 29. R1d4 {[%clk 00:04:48]} {[%emt 00:00:47]} Ref8
{[%clk 00:03:01]} {[%emt 00:01:27]} 30. Qg3 {[%clk 00:03:05]} {[%emt 00:01:48]}
Kh8 {[%clk 00:02:14]} {[%emt 00:00:52]} 31. e5 {[%clk 00:01:46]} {[%emt
00:01:25]} fxe5 {[%clk 00:01:45]} {[%emt 00:00:34]} 32. Re4 {[%clk 00:01:36]}
{[%emt 00:00:15]} 1-0

[ePGN "0.1;DGT LiveChess/2.2.5"]